[Event "Saint Louis Invitational-B 2019"]
[Site "Saint Louis"]
[Date "2019.11.22"]
[Round "2.1"]
[White "Proleiko, Julian"]
[Black "Arias Santana, Mauricio"]
[Result "1/2-1/2"]
[ECO "A43"]
[WhiteElo "2170"]
[BlackElo "2292"]
[Annotator "ChessBase"]
[PlyCount "77"]
[EventDate "2019.11.21"]
[EventType "tourn"]
[EventCountry "USA"]
[SourceTitle "playchess.com"]
[Source "ChessBase"]
[SourceQuality "1"]
[TimeControl "5400+30"]

1. d4 {[%emt 0:00:00]} Nf6 {[%emt 0:01:33]} 2. Nf3 {[%emt 0:00:00]} c5 {[%emt 0:00:05]} 3. d5 {[%emt 0:00:00]} g6 {[%emt 0:00:31]} 4. Nc3 {[%emt 0:00:00]} Bg7 {[%emt 0:00:06]} 5. e4 {[%emt 0:00:05]} d6 {[%emt 0:00:03]} 6. Be2 {[%emt 0:00:06]} O-O {[%emt 0:00:08]} 7. O-O {[%emt 0:00:04]} Bg4 {[%emt 0:00:07]} 8. Nd2 {[%emt 0:00:20]} Bxe2 {[%emt 0:00:07]} 9. Qxe2 {[%emt 0:00:03]} Nbd7 {[%emt 0:00:18]} 10. Nc4 {[%emt 0:00:19]} Ne8 {[%emt 0:05:08]} 11. Bf4 {[%emt 0:01:42]} f6 {[%emt 0:00:27]} 12. Bg3 {[%emt 0:02:57]} Nc7 {[%emt 0:00:10]} 13. a4 {[%emt 0:00:08]} Ne5 {[%emt 0:04:26]} 14. Nxe5 {[%emt 0:00:56]} fxe5 {[%emt 0:00:09]} 15. Nd1 {[%emt 0:06:33]} Qd7 {[%emt 0:05:15]} 16. Ne3 {[%emt 0:00:18]} Ne8 {[%emt 0:09:34]} 17. f3 {[%emt 0:12:43]} Nf6 {[%emt 0:00:21]} 18. Qb5 {[%emt 0:00:53]} Qc8 {[%emt 0:01:20]} 19. Bh4 {[%emt 0:03:04]} Bh6 {[%emt 0:08:39]} 20. Qe2 {[%emt 0:04:34]} Rf7 {[%emt 0:03:14]} 21. Ng4 {[%emt 0:03:53]} Bg7 {[%emt 0:10:31]} 22. Nxf6+ {[%emt 0:01:44]} exf6 {[%emt 0:01:57]} 23. c3 {[%emt 0:02:02]} f5 {[%emt 0:04:02]} 24. Bg5 {[%emt 0:00:12]} Qd7 {[%emt 0:09:25]} 25. Qb5 {[%emt 0:01:09]} Raf8 {[%emt 0:02:09]} 26. Qxd7 {[%emt 0:00:13]} Rxd7 {[%emt 0:00:01]} 27. Be3 {[%emt 0:00:28]} Rc8 {[%emt 0:01:33]} 28. Kf2 {[%emt 0:00:51]} h5 {[%emt 0:00:07]} 29. Ke2 {[%emt 0:00:15]} Kh7 {[%emt 0:00:16]} 30. g4 {[%emt 0:08:46]} hxg4 {[%emt 0:06:00]} 31. fxg4 {[%emt 0:00:11]} f4 {[%emt 0:00:02]} 32. Bf2 {[%emt 0:00:16]} Bf6 {[%emt 0:00:02]} 33. h4 {[%emt 0:00:15]} Bd8 {[%emt 0:00:04]} 34. Kf3 {[%emt 0:00:37]} Ba5 {[%emt 0:02:31]} 35. g5 {[%emt 0:03:14]} Kg7 {[%emt 0:07:15]} 36. Kg4 {[%emt 0:00:40]} Rdd8 {[%emt 0:01:32]} 37. Rh1 {[%emt 0:00:24]} Rh8 {[%emt 0:00:02]} 38. Rh3 {[%emt 0:01:12]} c4 {[%emt 0:00:59]} 39. Rah1 {[%emt 0:01:00]} 1/2-1/2

[Event "Saint Louis Invitational-B 2019"]
[Site "Saint Louis"]
[Date "2019.11.22"]
[Round "2.2"]
[White "Grabinsky, Aaron"]
[Black "Gauri, Shankar"]
[Result "1/2-1/2"]
[ECO "C24"]
[WhiteElo "2338"]
[BlackElo "2340"]
[Annotator "ChessBase"]
[PlyCount "97"]
[EventDate "2019.11.21"]
[EventType "tourn"]
[EventCountry "USA"]
[SourceTitle "playchess.com"]
[Source "ChessBase"]
[SourceQuality "1"]
[TimeControl "5400+30"]

1. e4 {[%emt 0:00:00]} e5 {[%emt 0:00:41]} 2. Bc4 {[%emt 0:00:09]} Nf6 {[%emt 0:00:14]} 3. d3 {[%emt 0:00:06]} Bc5 {[%emt 0:01:59]} 4. Nf3 {[%emt 0:02:26]} d6 {[%emt 0:01:24]} 5. c3 {[%emt 0:01:06]} O-O {[%emt 0:17:44]} 6. O-O {[%emt 0:00:58]} Bb6 {[%emt 0:01:30]} 7. Re1 {[%emt 0:01:12]} Re8 {[%emt 0:04:17]} 8. Nbd2 {[%emt 0:01:49]} Nbd7 {[%emt 0:03:00]} 9. Bb3 {[%emt 0:01:46]} c6 {[%emt 0:02:53]} 10. Nf1 {[%emt 0:00:55]} Nf8 {[%emt 0:18:16]} 11. Ng3 {[%emt 0:00:42]} Be6 {[%emt 0:02:43]} 12. Bc2 {[%emt 0:06:05]} h6 {[%emt 0:02:55]} 13. h3 {[%emt 0:02:05]} c5 {[%emt 0:09:56]} 14. Nh4 {[%emt 0:04:18]} d5 {[%emt 0:06:01]} 15. Qf3 {[%emt 0:03:34]} d4 {[%emt 0:03:10]} 16. c4 {[%emt 0:02:34]} Ng6 {[%emt 0:03:58]} 17. Nhf5 {[%emt 0:02:24]} Bc7 {[%emt 0:00:46]} 18. Ba4 {[%emt 0:03:33]} Rf8 {[%emt 0:00:32]} 19. Nf1 {[%emt 0:10:16]} Bxf5 {[%emt 0:13:24]} 20. exf5 {[%emt 0:00:13]} Nh4 {[%emt 0:00:05]} 21. Qxb7 {[%emt 0:00:45]} Rb8 {[%emt 0:00:23]} 22. Qa6 {[%emt 0:04:41]} Rb6 {[%emt 0:02:33]} 23. Qxa7 {[%emt 0:03:03]} Qd6 {[%emt 0:02:30]} 24. Bb5 {[%emt 0:01:09]} Nxf5 {[%emt 0:00:28]} 25. Qa4 {[%emt 0:00:50]} Nh4 {[%emt 0:00:25]} 26. Qd1 {[%emt 0:02:40]} Qe6 {[%emt 0:00:41]} 27. Ng3 {[%emt 0:00:48]} Qc8 {[%emt 0:00:15]} 28. Ne4 {[%emt 0:05:44]} Nxe4 {[%emt 0:00:44]} 29. Rxe4 {[%emt 0:00:35]} Ng6 {[%emt 0:00:27]} 30. Re1 {[%emt 0:10:36]} Qb7 {[%emt 0:00:02]} 31. Qe2 {[%emt 0:10:54]} f5 {[%emt 0:00:18]} 32. Kh1 {[%emt 0:03:40]} Nh4 {[%emt 0:00:23]} 33. f3 {[%emt 0:01:08]} Rg6 {[%emt 0:00:30]} 34. Rg1 {[%emt 0:00:10]} e4 {[%emt 0:01:05]} 35. dxe4 {[%emt 0:04:11]} fxe4 {[%emt 0:00:03]} 36. Qxe4 {[%emt 0:00:36]} Qxe4 {[%emt 0:00:30]} 37. fxe4 {[%emt 0:00:04]} Rf2 {[%emt 0:00:53]} 38. Bd7 {[%emt 0:00:37]} Rgxg2 {[%emt 0:00:49]} 39. Rxg2 {[%emt 0:00:08]} Rxg2 {[%emt 0:00:19]} 40. Bg4 {[%emt 0:00:37]} g6 41. Bxh6 {[%emt 0:01:43]} Rh2+ {[%emt 0:00:45]} 42. Kg1 {[%emt 0:01:10]} Rg2+ {[%emt 0:00:01]} 43. Kh1 {[%emt 0:00:44]} Rh2+ {[%emt 0:00:13]} 44. Kg1 {[%emt 0:00:01]} Rg2+ {[%emt 0:00:05]} 45. Kf1 {[%emt 0:01:20]} Bg3 {[%emt 0:00:14]} 46. Bg5 {[%emt 0:01:42]} Rf2+ {[%emt 0:00:11]} 47. Kg1 {[%emt 0:00:07]} Rg2+ {[%emt 0:00:42]} 48. Kf1 {[%emt 0:00:18]} Rf2+ {[%emt 0:01:29]} 49. Kg1 {[%emt 0:00:05]} 1/2-1/2

[Event "Saint Louis Invitational-B 2019"]
[Site "Saint Louis"]
[Date "2019.11.22"]
[Round "2.3"]
[White "Cervantes Landeiro, Thalia"]
[Black "Polgar-Shutzman, Tom"]
[Result "1/2-1/2"]
[ECO "A41"]
[WhiteElo "2227"]
[BlackElo "2234"]
[Annotator "ChessBase"]
[PlyCount "84"]
[EventDate "2019.11.21"]
[EventType "tourn"]
[EventCountry "USA"]
[SourceTitle "playchess.com"]
[Source "ChessBase"]
[SourceQuality "1"]
[TimeControl "5400+30"]

1. d4 {[%emt 0:00:00]} d6 {[%emt 0:00:00]} 2. c4 {[%emt 0:00:00]} e5 {[%emt 0:00:00]} 3. d5 {[%emt 0:00:00]} f5 {[%emt 0:00:00]} 4. e4 {[%emt 0:00:00]} fxe4 {[%emt 0:00:00]} 5. Nc3 {[%emt 0:00:00]} Nf6 {[%emt 0:00:00]} 6. Nge2 {[%emt 0:00:07]} Be7 {[%emt 0:00:09]} 7. Ng3 {[%emt 0:00:35]} O-O {[%emt 0:00:19]} 8. Be2 {[%emt 0:02:45]} a5 {[%emt 0:03:31]} 9. O-O {[%emt 0:05:39]} Na6 {[%emt 0:01:15]} 10. Ncxe4 {[%emt 0:03:11]} Nxe4 {[%emt 0:01:29]} 11. Nxe4 {[%emt 0:00:10]} Bf5 {[%emt 0:00:38]} 12. Ng3 {[%emt 0:00:47]} Bg6 {[%emt 0:05:49]} 13. Bd2 {[%emt 0:04:39]} b6 {[%emt 0:03:11]} 14. a3 {[%emt 0:13:09]} Nc5 {[%emt 0:04:57]} 15. b4 {[%emt 0:05:31]} axb4 {[%emt 0:00:27]} 16. axb4 {[%emt 0:00:19]} Rxa1 {[%emt 0:05:38]} 17. Qxa1 {[%emt 0:00:16]} Nb3 {[%emt 0:00:04]} 18. Qb2 {[%emt 0:00:29]} Nxd2 {[%emt 0:00:49]} 19. Qxd2 {[%emt 0:00:08]} Bg5 {[%emt 0:03:29]} 20. Qa2 {[%emt 0:03:09]} Bf4 {[%emt 0:24:42]} 21. Qa3 {[%emt 0:10:23]} Qg5 {[%emt 0:06:24]} 22. Bd3 {[%emt 0:30:44]} Bxg3 {[%emt 0:10:30]} 23. hxg3 {[%emt 0:00:18]} e4 {[%emt 0:01:16]} 24. Be2 {[%emt 0:02:33]} Qd2 {[%emt 0:01:46]} 25. Bg4 {[%emt 0:01:05]} Qd4 {[%emt 0:04:05]} 26. Qe3 {[%emt 0:04:34]} Qxe3 {[%emt 0:04:06]} 27. fxe3 {[%emt 0:00:32]} Rxf1+ {[%emt 0:01:05]} 28. Kxf1 {[%emt 0:00:02]} Kf7 {[%emt 0:13:39]} 29. Ke2 {[%emt 0:01:05]} Kf6 {[%emt 0:00:56]} 30. Kd2 {[%emt 0:03:06]} Ke5 {[%emt 0:01:58]} 31. Kc3 {[%emt 0:01:30]} b5 {[%emt 0:00:30]} 32. Be6 {[%emt 0:01:17]} Be8 {[%emt 0:01:52]} 33. Bg8 {[%emt 0:04:06]} Bh5 {[%emt 0:00:30]} 34. Bxh7 {[%emt 0:01:50]} Be2 {[%emt 0:00:20]} 35. cxb5 {[%emt 0:01:27]} Bxb5 {[%emt 0:00:54]} 36. Bg8 {[%emt 0:00:11]} Bf1 {[%emt 0:00:37]} 37. Kb3 {[%emt 0:01:17]} Bd3 {[%emt 0:00:24]} 38. Kc3 {[%emt 0:00:22]} Bf1 {[%emt 0:00:16]} 39. Kb3 {[%emt 0:00:06]} Bd3 {[%emt 0:00:07]} 40. Kc3 {[%emt 0:00:06]} Be2 {[%emt 0:01:08]} 41. Kb3 {[%emt 0:00:34]} Ba6 {[%emt 0:00:51]} 42. Kc3 {[%emt 0:00:12]} Bd3 1/2-1/2

[Event "Saint Louis Invitational-B 2019"]
[Site "Saint Louis"]
[Date "2019.11.22"]
[Round "2.4"]
[White "Krykun, Yuriy"]
[Black "Stearman, Josiah"]
[Result "0-1"]
[ECO "A06"]
[WhiteElo "2382"]
[BlackElo "2341"]
[Annotator "ChessBase"]
[PlyCount "84"]
[EventDate "2019.11.21"]
[EventType "tourn"]
[EventCountry "USA"]
[SourceTitle "playchess.com"]
[Source "ChessBase"]
[SourceQuality "1"]
[TimeControl "5400+30"]

1. Nf3 {[%emt 0:00:00]} d5 {[%emt 0:00:00]} 2. e3 {[%emt 0:00:00]} Nf6 {[%emt 0:00:00]} 3. c4 {[%emt 0:00:00]} c6 {[%emt 0:00:27]} 4. Nc3 {[%emt 0:00:00]} Bf5 {[%emt 0:01:49]} 5. cxd5 {[%emt 0:00:25]} Nxd5 {[%emt 0:03:41]} 6. d4 {[%emt 0:01:31]} e6 {[%emt 0:04:14]} 7. Bd3 {[%emt 0:02:27]} Qa5 {[%emt 0:12:37]} 8. Bxf5 {[%emt 0:02:09]} Nxc3 {[%emt 0:00:57]} 9. bxc3 {[%emt 0:00:05]} Qxf5 {[%emt 0:00:09]} 10. O-O {[%emt 0:01:37]} Nd7 {[%emt 0:05:24]} 11. c4 {[%emt 0:04:15]} Be7 {[%emt 0:08:26]} 12. Qb3 {[%emt 0:06:25]} b5 {[%emt 0:01:37]} 13. a4 {[%emt 0:10:09]} b4 {[%emt 0:04:04]} 14. a5 {[%emt 0:00:10]} O-O {[%emt 0:00:12]} 15. c5 {[%emt 0:00:51]} Rab8 {[%emt 0:00:57]} 16. Bd2 {[%emt 0:08:41]} Rb5 {[%emt 0:01:05]} 17. Qb1 {[%emt 0:06:27]} Qxb1 {[%emt 0:09:32]} 18. Rfxb1 {[%emt 0:00:03]} Rfb8 {[%emt 0:00:12]} 19. Rb3 {[%emt 0:06:12]} e5 {[%emt 0:12:43]} 20. Kf1 {[%emt 0:23:21]} e4 {[%emt 0:07:29]} 21. Ng1 {[%emt 0:00:55]} f5 {[%emt 0:02:43]} 22. Ne2 {[%emt 0:03:58]} Nf6 {[%emt 0:00:33]} 23. Ng3 {[%emt 0:04:09]} g6 {[%emt 0:00:20]} 24. Ra4 {[%emt 0:00:06]} Nd5 {[%emt 0:03:05]} 25. f3 {[%emt 0:00:12]} Nc3 {[%emt 0:04:09]} 26. Ra1 {[%emt 0:00:48]} exf3 {[%emt 0:01:43]} 27. gxf3 {[%emt 0:00:18]} f4 {[%emt 0:01:07]} 28. exf4 {[%emt 0:02:07]} Bf6 {[%emt 0:00:43]} 29. Be3 {[%emt 0:03:12]} Nd5 {[%emt 0:01:17]} 30. Bf2 {[%emt 0:04:33]} Rxc5 {[%emt 0:00:34]} 31. Ne4 {[%emt 0:00:42]} Rc2 {[%emt 0:00:17]} 32. Nxf6+ {[%emt 0:01:45]} Nxf6 {[%emt 0:00:07]} 33. d5 {[%emt 0:00:04]} c5 {[%emt 0:01:00]} 34. d6 {[%emt 0:00:28]} c4 {[%emt 0:00:35]} 35. Rbb1 {[%emt 0:01:03]} b3 {[%emt 0:00:12]} 36. Bxa7 {[%emt 0:00:18]} Rd8 {[%emt 0:01:32]} 37. Bb6 {[%emt 0:06:38]} Rxd6 {[%emt 0:00:09]} 38. a6 {[%emt 0:00:11]} Nd5 {[%emt 0:00:41]} 39. Bd4 {[%emt 0:01:40]} Nc7 {[%emt 0:00:28]} 40. Be5 {[%emt 0:01:27]} Rxa6 {[%emt 0:00:05]} 41. Rxa6 {[%emt 0:00:29]} Nxa6 {[%emt 0:00:06]} 42. Rd1 {[%emt 0:00:03]} b2 {[%emt 0:00:47]} 0-1

[Event "Saint Louis Invitational-B 2019"]
[Site "Saint Louis"]
[Date "2019.11.22"]
[Round "2.5"]
[White "Kiewra, Keaton"]
[Black "Torres Rosas, Luis Carlos"]
[Result "1-0"]
[ECO "E01"]
[WhiteElo "2372"]
[BlackElo "2360"]
[Annotator "ChessBase"]
[PlyCount "85"]
[EventDate "2019.11.21"]
[EventType "tourn"]
[EventCountry "USA"]
[SourceTitle "playchess.com"]
[Source "ChessBase"]
[SourceQuality "1"]
[TimeControl "5400+30"]

1. d4 {[%emt 0:00:00]} Nf6 {[%emt 0:00:00]} 2. c4 {[%emt 0:00:21]} e6 {[%emt 0:00:05]} 3. g3 {[%emt 0:01:00]} d5 {[%emt 0:00:10]} 4. Bg2 {[%emt 0:01:11]} Bb4+ {[%emt 0:00:24]} 5. Bd2 {[%emt 0:02:05]} Be7 {[%emt 0:00:25]} 6. Nf3 {[%emt 0:03:28]} O-O {[%emt 0:02:32]} 7. O-O {[%emt 0:00:16]} Ne4 {[%emt 0:01:38]} 8. Bf4 {[%emt 0:01:24]} Nd7 {[%emt 0:01:43]} 9. Nc3 {[%emt 0:12:16]} Nxc3 {[%emt 0:08:31]} 10. bxc3 {[%emt 0:00:07]} dxc4 {[%emt 0:00:04]} 11. Nd2 {[%emt 0:01:00]} Nb6 {[%emt 0:02:01]} 12. e4 {[%emt 0:00:30]} c5 {[%emt 0:08:50]} 13. Nf3 {[%emt 0:03:10]} cxd4 {[%emt 0:04:22]} 14. cxd4 {[%emt 0:00:21]} Bd7 {[%emt 0:02:10]} 15. a4 {[%emt 0:04:11]} a5 {[%emt 0:03:55]} 16. d5 {[%emt 0:00:07]} exd5 {[%emt 0:10:51]} 17. exd5 {[%emt 0:00:16]} Bg4 {[%emt 0:00:47]} 18. h3 {[%emt 0:07:06]} Bh5 {[%emt 0:02:28]} 19. g4 {[%emt 0:02:15]} Nxd5 {[%emt 0:01:21]} 20. Bg3 {[%emt 0:00:32]} Bg6 {[%emt 0:02:41]} 21. Ne5 {[%emt 0:00:06]} Nc3 {[%emt 0:05:37]} 22. Qf3 {[%emt 0:09:13]} Bb4 {[%emt 0:00:55]} 23. Qxb7 {[%emt 0:01:19]} Ne2+ {[%emt 0:02:47]} 24. Kh2 {[%emt 0:00:06]} Nxg3 {[%emt 0:02:15]} 25. fxg3 {[%emt 0:00:06]} Qd4 {[%emt 0:09:10]} 26. Nxg6 {[%emt 0:09:25]} hxg6 {[%emt 0:03:12]} 27. Rad1 {[%emt 0:00:07]} Bd2 28. Rf4 {[%emt 0:04:09]} Qd3 {[%emt 0:08:47]} 29. Rf3 {[%emt 0:01:47]} Qc2 {[%emt 0:02:30]} 30. Rdf1 {[%emt 0:00:43]} Rab8 {[%emt 0:02:58]} 31. Qc7 {[%emt 0:00:17]} Rbc8 {[%emt 0:01:32]} 32. Qb7 {[%emt 0:00:06]} Rb8 {[%emt 0:01:24]} 33. Qc7 {[%emt 0:00:41]} f6 {[%emt 0:00:56]} 34. R3f2 {[%emt 0:00:52]} Qd3 {[%emt 0:01:31]} 35. Qc6 {[%emt 0:01:04]} c3 {[%emt 0:04:12]} 36. Be4 {[%emt 0:01:09]} Qd4 {[%emt 0:00:33]} 37. Bxg6 {[%emt 0:01:43]} Rb6 {[%emt 0:00:12]} 38. Qf3 {[%emt 0:01:58]} Re6 {[%emt 0:01:08]} 39. Bc2 {[%emt 0:01:11]} Re5 {[%emt 0:00:09]} 40. h4 {[%emt 0:03:41]} Qe3 {[%emt 0:01:11]} 41. Qd1 {[%emt 0:03:12]} Be1 {[%emt 0:01:57]} 42. Rg2 {[%emt 0:00:04]} Qc5 {[%emt 0:02:32]} 43. Rxe1 1-0

[Event "Saint Louis Invitational-B 2019"]
[Site "Saint Louis"]
[Date "2019.11.23"]
[Round "4.1"]
[White "Proleiko, Julian"]
[Black "Grabinsky, Aaron"]
[Result "0-1"]
[ECO "E15"]
[WhiteElo "2170"]
[BlackElo "2338"]
[Annotator "ChessBase"]
[PlyCount "87"]
[EventDate "2019.11.21"]
[EventType "tourn"]
[EventCountry "USA"]
[SourceTitle "playchess.com"]
[Source "ChessBase"]
[SourceQuality "1"]
[TimeControl "5400+30"]

1. d4 {[%emt 0:00:05]} Nf6 {[%emt 0:00:00]} 2. c4 {[%emt 0:00:24]} e6 {[%emt 0:00:00]} 3. Nf3 {[%emt 0:00:21]} b6 {[%emt 0:00:00]} 4. g3 {[%emt 0:00:07]} Ba6 {[%emt 0:00:00]} 5. Qc2 {[%emt 0:00:07]} Bb7 {[%emt 0:00:05]} 6. Bg2 {[%emt 0:00:19]} c5 {[%emt 0:00:06]} 7. d5 {[%emt 0:00:05]} exd5 {[%emt 0:00:06]} 8. cxd5 {[%emt 0:00:05]} Nxd5 {[%emt 0:00:19]} 9. O-O {[%emt 0:00:05]} Be7 {[%emt 0:00:18]} 10. Rd1 {[%emt 0:00:06]} Nc6 {[%emt 0:00:33]} 11. Qa4 {[%emt 0:00:06]} Nf6 {[%emt 0:00:28]} 12. Nh4 {[%emt 0:00:06]} O-O {[%emt 0:07:09]} 13. Nf5 {[%emt 0:00:52]} a6 {[%emt 0:05:04]} 14. Bg5 {[%emt 0:10:53]} h6 {[%emt 0:09:18]} 15. Bh4 {[%emt 0:00:27]} Kh7 {[%emt 0:04:58]} 16. Nc3 {[%emt 0:26:17]} g5 {[%emt 0:08:43]} 17. Nd5 {[%emt 0:01:09]} Nxd5 {[%emt 0:04:28]} 18. Bxd5 {[%emt 0:00:14]} Bf6 {[%emt 0:05:40]} 19. Qe4 {[%emt 0:05:56]} Qe8 {[%emt 0:04:03]} 20. Qg4 {[%emt 0:04:07]} gxh4 {[%emt 0:07:52]} 21. Nd6 {[%emt 0:04:19]} Qe5 {[%emt 0:02:49]} 22. f4 {[%emt 0:03:47]} Qe3+ {[%emt 0:03:02]} 23. Kh1 {[%emt 0:00:05]} Rae8 {[%emt 0:06:22]} 24. Qf5+ {[%emt 0:04:30]} Kg7 {[%emt 0:00:06]} 25. Qxd7 {[%emt 0:00:17]} Nd4 {[%emt 0:04:10]} 26. Rxd4 {[%emt 0:00:37]} Bxd5+ {[%emt 0:00:13]} 27. Rxd5 {[%emt 0:00:08]} Qxe2 {[%emt 0:00:20]} 28. Nxe8+ {[%emt 0:02:01]} Rxe8 {[%emt 0:00:02]} 29. Qh3 {[%emt 0:08:09]} Bxb2 {[%emt 0:00:07]} 30. Rad1 {[%emt 0:00:52]} Bd4 {[%emt 0:02:11]} 31. Qf1 {[%emt 0:01:17]} Qxa2 {[%emt 0:01:01]} 32. Qf3 {[%emt 0:01:04]} Qe2 {[%emt 0:01:45]} 33. Qxe2 {[%emt 0:02:34]} Rxe2 {[%emt 0:00:05]} 34. Rd6 {[%emt 0:00:18]} Re6 {[%emt 0:00:23]} 35. Rd7 {[%emt 0:00:03]} h3 {[%emt 0:01:02]} 36. f5 {[%emt 0:00:33]} Re2 {[%emt 0:00:38]} 37. Rf1 {[%emt 0:00:35]} a5 {[%emt 0:02:04]} 38. f6+ {[%emt 0:02:11]} Bxf6 {[%emt 0:00:38]} 39. Rd6 {[%emt 0:00:03]} Re6 {[%emt 0:00:07]} 40. Rxe6 {[%emt 0:00:02]} fxe6 {[%emt 0:00:14]} 41. Rb1 {[%emt 0:00:01]} a4 {[%emt 0:00:26]} 42. Rxb6 {[%emt 0:00:02]} a3 {[%emt 0:00:18]} 43. Ra6 {[%emt 0:00:02]} Bb2 {[%emt 0:00:08]} 44. Kg1 {[%emt 0:00:01]} 0-1

[Event "Saint Louis Invitational-B 2019"]
[Site "Saint Louis"]
[Date "2019.11.23"]
[Round "4.5"]
[White "Torres Rosas, Luis Carlos"]
[Black "Stearman, Josiah"]
[Result "1-0"]
[ECO "D15"]
[WhiteElo "2360"]
[BlackElo "2341"]
[Annotator "ChessBase"]
[PlyCount "57"]
[EventDate "2019.11.21"]
[EventType "tourn"]
[EventCountry "USA"]
[SourceTitle "playchess.com"]
[Source "ChessBase"]
[SourceQuality "1"]
[TimeControl "5400+30"]

1. d4 {[%emt 0:02:51]} d5 {[%emt 0:00:00]} 2. c4 {[%emt 0:00:07]} c6 {[%emt 0:00:00]} 3. Nf3 {[%emt 0:00:05]} Nf6 {[%emt 0:00:00]} 4. Nc3 {[%emt 0:00:09]} dxc4 {[%emt 0:00:00]} 5. e4 {[%emt 0:00:05]} b5 {[%emt 0:00:34]} 6. Be2 {[%emt 0:00:45]} b4 {[%emt 0:02:20]} 7. Na4 {[%emt 0:00:08]} Nxe4 {[%emt 0:13:26]} 8. Bxc4 {[%emt 0:00:15]} e6 {[%emt 0:03:05]} 9. O-O {[%emt 0:00:06]} Bd6 {[%emt 0:01:01]} 10. Qe2 {[%emt 0:00:12]} Nf6 {[%emt 0:00:50]} 11. Bg5 {[%emt 0:00:51]} O-O {[%emt 0:01:43]} 12. Nc5 {[%emt 0:00:49]} h6 {[%emt 0:02:52]} 13. Bh4 {[%emt 0:00:15]} g5 {[%emt 0:02:40]} 14. Bg3 {[%emt 0:10:05]} Bxg3 {[%emt 0:00:30]} 15. fxg3 {[%emt 0:00:22]} g4 {[%emt 0:03:36]} 16. Ne5 {[%emt 0:05:06]} Qxd4+ {[%emt 0:00:10]} 17. Kh1 {[%emt 0:00:07]} Kg7 {[%emt 0:00:32]} 18. Ncd3 {[%emt 0:13:38]} Qe4 {[%emt 0:29:59]} 19. Qf2 {[%emt 0:03:21]} Qf5 {[%emt 0:03:15]} 20. Qd4 {[%emt 0:05:49]} Qe4 {[%emt 0:01:38]} 21. Qd6 {[%emt 0:03:09]} Nbd7 {[%emt 0:07:47]} 22. Rf4 {[%emt 0:08:15]} Qe3 {[%emt 0:04:45]} 23. Raf1 {[%emt 0:02:30]} c5 {[%emt 0:12:01]} 24. Qe7 {[%emt 0:04:52]} h5 {[%emt 0:06:37]} 25. Nxd7 {[%emt 0:00:45]} Nxd7 {[%emt 0:01:49]} 26. Rxf7+ {[%emt 0:00:06]} Rxf7 {[%emt 0:00:16]} 27. Rxf7+ {[%emt 0:00:33]} Kh6 {[%emt 0:00:10]} 28. Rh7+ {[%emt 0:00:09]} Kg6 {[%emt 0:00:03]} 29. Qf7+ {[%emt 0:00:06]} 1-0